[Event "Titled Tuesday Blitz December 27 Early 2022"]
[White "Sovetov, Oleksandr"]
[Black "Bortnyk, Olexandr"]
[WhiteFideId "34105786"]
[BlackFideId "14120828"]
[WhiteElo "1976"]
[BlackElo "2605"]
[Result "0-1"]
[Round "07"]
[TimeControl "180+2"]
[Date "2022.12.27"]
[WhiteClock "0:00:03"]
[BlackClock "0:00:21"]

1. Nf3 {[%clk 0:02:52]}  Nf6 {[%clk 0:02:59]} 2. c4 {[%clk 0:02:52]}  g6 {[%clk 0:02:59]} 3. Nc3 {[%clk 0:02:52]}  Bg7 {[%clk 0:03:00]} 4. e4 {[%clk 0:02:52]}  O-O {[%clk 0:03:01]} 5. d4 {[%clk 0:02:53]}  d6 {[%clk 0:03:02]} 6. Be2 {[%clk 0:02:53]}  e5 {[%clk 0:03:02]} 7. d5 {[%clk 0:02:54]}  a5 {[%clk 0:03:01]} 8. Nd2 {[%clk 0:02:43]}  Na6 {[%clk 0:03:02]} 9. h4 {[%clk 0:02:42]}  h5 {[%clk 0:03:02]} 10. Nf1 {[%clk 0:02:41]}  Nc5 {[%clk 0:03:02]} 11. Bg5 {[%clk 0:02:41]}  c6 {[%clk 0:03:00]} 12. Qd2 {[%clk 0:02:34]}  Qb6 {[%clk 0:03:00]} 13. Ng3 {[%clk 0:02:32]}  a4 {[%clk 0:02:52]} 14. Be3 {[%clk 0:02:29]}  Qa5 {[%clk 0:02:48]} 15. f3 {[%clk 0:02:17]}  cxd5 {[%clk 0:02:41]} 16. Nxd5 {[%clk 0:02:16]}  Nxd5 {[%clk 0:02:38]} 17. Qxa5 {[%clk 0:02:12]}  Rxa5 {[%clk 0:02:37]} 18. cxd5 {[%clk 0:02:10]}  f5 {[%clk 0:02:32]} 19. exf5 {[%clk 0:02:06]}  Bxf5 {[%clk 0:02:29]} 20. Nxf5 {[%clk 0:02:05]}  gxf5 {[%clk 0:02:29]} 21. Rd1 {[%clk 0:01:55]}  e4 {[%clk 0:02:26]} 22. Rd2 {[%clk 0:01:55]}  exf3 {[%clk 0:00:52]} 23. Bxf3 {[%clk 0:01:45]}  Re8 {[%clk 0:00:52]} 24. Kf2 {[%clk 0:01:41]}  Ne4+ {[%clk 0:00:44]} 25. Bxe4 {[%clk 0:01:41]}  Rxe4 {[%clk 0:00:44]} 26. Kf3 {[%clk 0:01:32]}  Rxe3+ {[%clk 0:00:44]} 27. Kxe3 {[%clk 0:01:32]}  Bh6+ {[%clk 0:00:45]} 28. Ke2 {[%clk 0:01:32]}  Bxd2 {[%clk 0:00:45]} 29. Kxd2 {[%clk 0:01:32]}  Rxd5+ {[%clk 0:00:46]} 30. Kc3 {[%clk 0:01:31]}  Kf7 {[%clk 0:00:44]} 31. Rf1 {[%clk 0:00:47]}  Ke6 {[%clk 0:00:44]} 32. Rf4 {[%clk 0:00:47]}  b5 {[%clk 0:00:43]} 33. Kb4 {[%clk 0:00:37]}  Rd2 {[%clk 0:00:42]} 34. a3 {[%clk 0:00:17]}  Rxb2+ {[%clk 0:00:42]} 35. Ka5 {[%clk 0:00:18]}  Rb3 {[%clk 0:00:42]} 36. Rf1 {[%clk 0:00:08]}  Rxa3 {[%clk 0:00:40]} 37. Kxb5 {[%clk 0:00:08]}  Ra2 {[%clk 0:00:41]} 38. g3 {[%clk 0:00:08]}  a3 {[%clk 0:00:32]} 39. Re1+ {[%clk 0:00:07]}  Kf6 {[%clk 0:00:32]} 40. Re3 {[%clk 0:00:06]}  Rb2+ {[%clk 0:00:31]} 41. Kc6 {[%clk 0:00:06]}  a2 {[%clk 0:00:31]} 42. Ra3 {[%clk 0:00:07]}  Rd2 {[%clk 0:00:24]} 43. Ra5 {[%clk 0:00:04]}  d5 {[%clk 0:00:23]} 44. Kc5 {[%clk 0:00:04]}  Ke5 {[%clk 0:00:22]} 45. Ra4 {[%clk 0:00:04]}  d4 {[%clk 0:00:22]} 46. Ra8 {[%clk 0:00:03]}  Ke4 {[%clk 0:00:22]} 47. Kc4 {[%clk 0:00:03]}  Kf3 {[%clk 0:00:22]} 48. Ra3+ {[%clk 0:00:03]}  Kg4 {[%clk 0:00:21]} 49. Kd5 {[%clk 0:00:03]}  d3 {[%clk 0:00:22]} 50. Ke5 {[%clk 0:00:03]}  Rf2 {[%clk 0:00:20]} 51. Rxd3 {[%clk 0:00:01]}  a1=Q+ {[%clk 0:00:21]} 52. Rd4+ {[%clk 0:00:02]}  Qxd4+ {[%clk 0:00:20]} 53. Kxd4 {[%clk 0:00:03]}  Kxg3 {[%clk 0:00:21]} 0-1


[Site "https://www.chess.com"]

[Event "Titled Tuesday Blitz December 27 Early 2022"]
[White "Sreyas Payyappat"]
[Black "Csonka, Balazs"]
[WhiteFideId "46674969"]
[BlackFideId "742910"]
[WhiteElo "2076"]
[BlackElo "2496"]
[Result "0-1"]
[Round "07"]
[TimeControl "180+2"]
[Date "2022.12.27"]
[WhiteClock "0:00:16"]
[BlackClock "0:00:14"]

1. e4 {[%clk 0:02:57]}  c5 {[%clk 0:02:59]} 2. Nf3 {[%clk 0:02:53]}  Nc6 {[%clk 0:02:58]} 3. d4 {[%clk 0:02:52]}  cxd4 {[%clk 0:02:57]} 4. Nxd4 {[%clk 0:02:53]}  Nf6 {[%clk 0:02:46]} 5. Nc3 {[%clk 0:02:50]}  e5 {[%clk 0:02:46]} 6. Ndb5 {[%clk 0:02:48]}  d6 {[%clk 0:02:46]} 7. Bg5 {[%clk 0:02:46]}  a6 {[%clk 0:02:46]} 8. Na3 {[%clk 0:02:44]}  b5 {[%clk 0:02:45]} 9. Nd5 {[%clk 0:02:42]}  Be7 {[%clk 0:02:45]} 10. Bxf6 {[%clk 0:02:33]}  Bxf6 {[%clk 0:02:46]} 11. c4 {[%clk 0:02:34]}  b4 {[%clk 0:02:38]} 12. Nc2 {[%clk 0:02:29]}  a5 {[%clk 0:02:30]} 13. g3 {[%clk 0:02:22]}  O-O {[%clk 0:02:26]} 14. Bg2 {[%clk 0:02:19]}  Be6 {[%clk 0:02:19]} 15. O-O {[%clk 0:02:17]}  Bg5 {[%clk 0:02:13]} 16. f4 {[%clk 0:02:15]}  exf4 {[%clk 0:02:06]} 17. gxf4 {[%clk 0:02:16]}  Bh6 {[%clk 0:02:03]} 18. e5 {[%clk 0:02:10]}  dxe5 {[%clk 0:01:55]} 19. f5 {[%clk 0:02:09]}  Bxd5 {[%clk 0:01:48]} 20. Bxd5 {[%clk 0:02:10]}  Qf6 {[%clk 0:01:37]} 21. Qf3 {[%clk 0:02:05]}  Rac8 {[%clk 0:01:35]} 22. Ne3 {[%clk 0:01:59]}  Bxe3+ {[%clk 0:01:26]} 23. Qxe3 {[%clk 0:01:58]}  Nd4 {[%clk 0:01:09]} 24. Qe4 {[%clk 0:01:50]}  Kh8 {[%clk 0:00:55]} 25. Kh1 {[%clk 0:01:47]}  Qh6 {[%clk 0:00:28]} 26. Qxe5 {[%clk 0:01:30]}  Nc2 {[%clk 0:00:28]} 27. Rac1 {[%clk 0:01:10]}  Ne3 {[%clk 0:00:28]} 28. Rg1 {[%clk 0:01:07]}  Rfe8 {[%clk 0:00:21]} 29. Qd4 {[%clk 0:00:40]}  Nxd5 {[%clk 0:00:14]} 30. Qxd5 {[%clk 0:00:38]}  Re2 {[%clk 0:00:15]} 31. Qg2 {[%clk 0:00:16]}  Rxg2 {[%clk 0:00:14]} 32. Kxg2 {[%clk 0:00:16]}  Qg5+ {[%clk 0:00:14]} 33. Kh1 {[%clk 0:00:17]}  Qxf5 {[%clk 0:00:15]} 34. Rgf1 {[%clk 0:00:17]}  Qe4+ {[%clk 0:00:15]} 35. Kg1 {[%clk 0:00:17]}  Rxc4 {[%clk 0:00:15]} 36. Rfe1 {[%clk 0:00:17]}  Rxc1 {[%clk 0:00:13]} 37. Rxc1 {[%clk 0:00:17]}  Qe3+ {[%clk 0:00:13]} 38. Kg2 {[%clk 0:00:16]}  Qxc1 {[%clk 0:00:14]} 0-1


[Site "https://www.chess.com"]

[Event "Titled Tuesday Blitz December 27 Early 2022"]
[White "Suleymanli, Suleyman"]
[Black "Avila Pavas, Santiago"]
[WhiteFideId "13416375"]
[BlackFideId "4437128"]
[WhiteElo "2269"]
[BlackElo "2522"]
[Result "1/2-1/2"]
[Round "07"]
[TimeControl "180+2"]
[Date "2022.12.27"]
[WhiteClock "0:01:20"]
[BlackClock "0:00:26"]

1. Nf3 {[%clk 0:03:00]}  Nf6 {[%clk 0:03:00]} 2. g3 {[%clk 0:02:59]}  g6 {[%clk 0:03:00]} 3. Bg2 {[%clk 0:02:58]}  Bg7 {[%clk 0:03:01]} 4. O-O {[%clk 0:02:55]}  O-O {[%clk 0:03:02]} 5. d4 {[%clk 0:02:54]}  d6 {[%clk 0:03:02]} 6. c4 {[%clk 0:02:54]}  Nbd7 {[%clk 0:03:03]} 7. Nc3 {[%clk 0:02:51]}  e5 {[%clk 0:03:03]} 8. e4 {[%clk 0:02:50]}  exd4 {[%clk 0:03:04]} 9. Nxd4 {[%clk 0:02:51]}  Re8 {[%clk 0:03:04]} 10. Qc2 {[%clk 0:02:50]}  Nxe4 {[%clk 0:03:00]} 11. Nxe4 {[%clk 0:02:50]}  Bxd4 {[%clk 0:03:00]} 12. Bg5 {[%clk 0:02:50]}  f6 {[%clk 0:02:55]} 13. Bh6 {[%clk 0:02:49]}  f5 {[%clk 0:02:28]} 14. Ng5 {[%clk 0:02:47]}  Nb6 {[%clk 0:02:19]} 15. Rad1 {[%clk 0:02:35]}  Bg7 {[%clk 0:02:19]} 16. Bxg7 {[%clk 0:02:32]}  Kxg7 {[%clk 0:02:19]} 17. c5 {[%clk 0:02:30]}  Qxg5 {[%clk 0:02:19]} 18. cxb6 {[%clk 0:02:27]}  cxb6 {[%clk 0:02:17]} 19. Rxd6 {[%clk 0:02:23]}  Be6 {[%clk 0:02:10]} 20. Bxb7 {[%clk 0:02:22]}  Rad8 {[%clk 0:02:00]} 21. Rxd8 {[%clk 0:02:21]}  Qxd8 {[%clk 0:01:57]} 22. Rd1 {[%clk 0:02:16]}  Qe7 {[%clk 0:01:51]} 23. Bf3 {[%clk 0:02:15]}  f4 {[%clk 0:01:48]} 24. Qa4 {[%clk 0:02:12]}  Bh3 {[%clk 0:01:45]} 25. Qd4+ {[%clk 0:02:04]}  Qe5 {[%clk 0:01:41]} 26. Qxe5+ {[%clk 0:02:02]}  Rxe5 {[%clk 0:01:42]} 27. gxf4 {[%clk 0:02:02]}  Rf5 {[%clk 0:01:29]} 28. Bg2 {[%clk 0:01:58]}  Bxg2 {[%clk 0:01:21]} 29. Kxg2 {[%clk 0:01:58]}  Rxf4 {[%clk 0:01:21]} 30. Rd7+ {[%clk 0:01:58]}  Rf7 {[%clk 0:01:21]} 31. Rxf7+ {[%clk 0:01:55]}  Kxf7 {[%clk 0:01:22]} 32. Kf3 {[%clk 0:01:55]}  Ke6 {[%clk 0:01:19]} 33. Kf4 {[%clk 0:01:56]}  h6 {[%clk 0:01:17]} 34. Ke4 {[%clk 0:01:56]}  g5 {[%clk 0:01:18]} 35. h3 {[%clk 0:01:53]}  h5 {[%clk 0:01:14]} 36. a4 {[%clk 0:01:38]}  Kf6 {[%clk 0:00:58]} 37. b4 {[%clk 0:01:28]}  a5 {[%clk 0:00:20]} 38. bxa5 {[%clk 0:01:26]}  bxa5 {[%clk 0:00:20]} 39. f3 {[%clk 0:01:17]}  Ke6 {[%clk 0:00:20]} 40. f4 {[%clk 0:01:16]}  g4 {[%clk 0:00:17]} 41. hxg4 {[%clk 0:01:15]}  hxg4 {[%clk 0:00:18]} 42. f5+ {[%clk 0:01:15]}  Kf6 {[%clk 0:00:19]} 43. Kf4 {[%clk 0:01:16]}  g3 {[%clk 0:00:19]} 44. Kxg3 {[%clk 0:01:16]}  Kxf5 {[%clk 0:00:20]} 45. Kf3 {[%clk 0:01:17]}  Ke5 {[%clk 0:00:21]} 46. Ke3 {[%clk 0:01:18]}  Kd5 {[%clk 0:00:22]} 47. Kd3 {[%clk 0:01:18]}  Kc5 {[%clk 0:00:23]} 48. Kc3 {[%clk 0:01:19]}  Kd5 {[%clk 0:00:24]} 49. Kd3 {[%clk 0:01:19]}  Kc5 {[%clk 0:00:25]} 50. Kc3 {[%clk 0:01:20]}  Kd5 {[%clk 0:00:26]} 51. Kd3 {[%clk 0:01:20]} 1/2-1/2


[Site "https://www.chess.com"]

[Event "Titled Tuesday Blitz December 27 Early 2022"]
[White "Tactrics"]
[Black "Deac, Bogdan-Daniel"]
[BlackFideId "1226380"]
[WhiteElo "2976"]
[BlackElo "2700"]
[Result "0-1"]
[Round "07"]
[TimeControl "180+2"]
[Date "2022.12.27"]
[WhiteClock "0:01:22"]
[BlackClock "0:01:14"]

1. e4 {[%clk 0:03:00]}  c6 {[%clk 0:02:57]} 2. Nc3 {[%clk 0:03:01]}  d5 {[%clk 0:02:58]} 3. Nf3 {[%clk 0:03:00]}  Bg4 {[%clk 0:02:58]} 4. h3 {[%clk 0:03:00]}  Bxf3 {[%clk 0:02:58]} 5. Qxf3 {[%clk 0:03:01]}  e6 {[%clk 0:02:59]} 6. d3 {[%clk 0:03:00]}  Bc5 {[%clk 0:02:57]} 7. Qg3 {[%clk 0:02:58]}  g6 {[%clk 0:02:48]} 8. Be3 {[%clk 0:02:47]}  Bd6 {[%clk 0:02:18]} 9. Bf4 {[%clk 0:02:45]}  Bxf4 {[%clk 0:02:16]} 10. Qxf4 {[%clk 0:02:46]}  Nf6 {[%clk 0:02:16]} 11. g3 {[%clk 0:02:40]}  Nbd7 {[%clk 0:02:09]} 12. Bg2 {[%clk 0:02:39]}  O-O {[%clk 0:02:09]} 13. O-O {[%clk 0:02:38]}  Qb6 {[%clk 0:02:09]} 14. Rab1 {[%clk 0:02:30]}  Rad8 {[%clk 0:02:08]} 15. Kh2 {[%clk 0:02:30]}  dxe4 {[%clk 0:02:06]} 16. Nxe4 {[%clk 0:02:25]}  Nxe4 {[%clk 0:02:06]} 17. Bxe4 {[%clk 0:02:21]}  e5 {[%clk 0:02:06]} 18. Qh4 {[%clk 0:02:21]}  Qd4 {[%clk 0:02:01]} 19. Qh6 {[%clk 0:02:15]}  f5 {[%clk 0:01:53]} 20. Bg2 {[%clk 0:02:13]}  Nf6 {[%clk 0:01:53]} 21. Qe3 {[%clk 0:02:09]}  Rfe8 {[%clk 0:01:47]} 22. Rfe1 {[%clk 0:02:07]}  Kf7 {[%clk 0:01:47]} 23. Re2 {[%clk 0:02:02]}  a5 {[%clk 0:01:41]} 24. Rbe1 {[%clk 0:01:39]}  Qxe3 {[%clk 0:01:40]} 25. Rxe3 {[%clk 0:01:37]}  Nd7 {[%clk 0:01:40]} 26. a3 {[%clk 0:01:33]}  Re6 {[%clk 0:01:34]} 27. f4 {[%clk 0:01:31]}  Rde8 {[%clk 0:01:33]} 28. fxe5 {[%clk 0:01:31]}  Nxe5 {[%clk 0:01:20]} 29. Kh1 {[%clk 0:01:31]}  Nxd3 {[%clk 0:01:15]} 30. Rxe6 {[%clk 0:01:24]}  Nxe1 {[%clk 0:01:15]} 31. Rxe8 {[%clk 0:01:22]}  Kxe8 {[%clk 0:01:14]} 0-1


[Site "https://www.chess.com"]

[Event "Titled Tuesday Blitz December 27 Early 2022"]
[White "Tan, Zhongyi"]
[Black "Moroni, Luca Jr"]
[WhiteFideId "8603642"]
[BlackFideId "865834"]
[WhiteElo "2517"]
[BlackElo "2535"]
[Result "1-0"]
[Round "07"]
[TimeControl "180+2"]
[Date "2022.12.27"]
[WhiteClock "0:00:06"]
[BlackClock "0:00:06"]

1. d4 {[%clk 0:03:00]}  g6 {[%clk 0:03:00]} 2. e4 {[%clk 0:03:00]}  Bg7 {[%clk 0:03:01]} 3. Nc3 {[%clk 0:03:00]}  a6 {[%clk 0:03:00]} 4. f4 {[%clk 0:02:57]}  d5 {[%clk 0:02:58]} 5. e5 {[%clk 0:02:53]}  Bf5 {[%clk 0:02:57]} 6. Nf3 {[%clk 0:02:48]}  h5 {[%clk 0:02:57]} 7. Be3 {[%clk 0:02:46]}  e6 {[%clk 0:02:57]} 8. Qd2 {[%clk 0:02:40]}  Nc6 {[%clk 0:02:55]} 9. a3 {[%clk 0:02:37]}  Nge7 {[%clk 0:02:56]} 10. h3 {[%clk 0:02:35]}  Qd7 {[%clk 0:02:43]} 11. Be2 {[%clk 0:02:33]}  f6 {[%clk 0:02:31]} 12. O-O-O {[%clk 0:02:32]}  O-O-O {[%clk 0:02:26]} 13. Rhg1 {[%clk 0:02:28]}  Kb8 {[%clk 0:01:59]} 14. Kb1 {[%clk 0:02:25]}  Qc8 {[%clk 0:01:47]} 15. g4 {[%clk 0:02:20]}  hxg4 {[%clk 0:01:45]} 16. hxg4 {[%clk 0:02:21]}  Be4 {[%clk 0:01:46]} 17. exf6 {[%clk 0:02:14]}  Bxf6 {[%clk 0:01:46]} 18. Ne5 {[%clk 0:02:10]}  Rh2 {[%clk 0:01:26]} 19. Qe1 {[%clk 0:01:51]}  Rdh8 {[%clk 0:01:07]} 20. Nxe4 {[%clk 0:01:42]}  dxe4 {[%clk 0:01:07]} 21. Bc4 {[%clk 0:01:41]}  Bxe5 {[%clk 0:01:00]} 22. fxe5 {[%clk 0:01:39]}  Nd5 {[%clk 0:00:36]} 23. Bc1 {[%clk 0:01:38]}  Nce7 {[%clk 0:00:19]} 24. Qxe4 {[%clk 0:01:36]}  c5 {[%clk 0:00:20]} 25. Bg5 {[%clk 0:01:23]}  cxd4 {[%clk 0:00:20]} 26. Qxd4 {[%clk 0:01:14]}  Nc6 {[%clk 0:00:18]} 27. Qe4 {[%clk 0:00:56]}  Ka8 {[%clk 0:00:18]} 28. Bf6 {[%clk 0:00:46]}  Re8 {[%clk 0:00:16]} 29. Rh1 {[%clk 0:00:33]}  Rf2 {[%clk 0:00:13]} 30. Bxd5 {[%clk 0:00:22]}  exd5 {[%clk 0:00:14]} 31. Qxd5 {[%clk 0:00:18]}  Nb4 {[%clk 0:00:10]} 32. Qb3 {[%clk 0:00:17]}  Nc6 {[%clk 0:00:08]} 33. Rh7 {[%clk 0:00:13]}  Na5 {[%clk 0:00:06]} 34. Qc3 {[%clk 0:00:12]}  Nc4 {[%clk 0:00:06]} 35. Rhd7 {[%clk 0:00:11]}  Qc6 {[%clk 0:00:05]} 36. Rd8+ {[%clk 0:00:11]}  Rxd8 {[%clk 0:00:04]} 37. Rxd8+ {[%clk 0:00:12]}  Ka7 {[%clk 0:00:05]} 38. Qd4+ {[%clk 0:00:12]}  Nb6 {[%clk 0:00:05]} 39. Qxf2 {[%clk 0:00:09]}  Qh1+ {[%clk 0:00:04]} 40. Ka2 {[%clk 0:00:08]}  Qc6 {[%clk 0:00:05]} 41. Rd1 {[%clk 0:00:06]}  Qc4+ {[%clk 0:00:05]} 42. Kb1 {[%clk 0:00:06]}  a5 {[%clk 0:00:06]} 43. Rd6 {[%clk 0:00:06]} 1-0


[Site "https://www.chess.com"]

[Event "Titled Tuesday Blitz December 27 Early 2022"]
[White "Tarasova, Viktoriya"]
[Black "Gerbelli Neto, Eduardo"]
[WhiteFideId "4175840"]
[BlackFideId "2103281"]
[WhiteElo "2226"]
[BlackElo "2114"]
[Result "1-0"]
[Round "07"]
[TimeControl "180+2"]
[Date "2022.12.27"]
[WhiteClock "0:00:11"]
[BlackClock "0:00:27"]

1. d4 {[%clk 0:03:00]}  d5 {[%clk 0:02:59]} 2. c4 {[%clk 0:02:59]}  c6 {[%clk 0:02:59]} 3. Nf3 {[%clk 0:02:57]}  Nf6 {[%clk 0:02:59]} 4. Nc3 {[%clk 0:02:57]}  e6 {[%clk 0:02:59]} 5. Bg5 {[%clk 0:02:56]}  dxc4 {[%clk 0:02:58]} 6. e4 {[%clk 0:02:55]}  b5 {[%clk 0:02:58]} 7. e5 {[%clk 0:02:56]}  h6 {[%clk 0:02:59]} 8. Bh4 {[%clk 0:02:57]}  g5 {[%clk 0:02:59]} 9. Nxg5 {[%clk 0:02:57]}  Nd5 {[%clk 0:03:00]} 10. Nf3 {[%clk 0:02:50]}  Qa5 {[%clk 0:03:00]} 11. Rc1 {[%clk 0:02:33]}  Bb4 {[%clk 0:02:59]} 12. Qc2 {[%clk 0:02:30]}  Qxa2 {[%clk 0:02:47]} 13. Be2 {[%clk 0:02:27]}  Nxc3 {[%clk 0:02:46]} 14. bxc3 {[%clk 0:02:27]}  Qxc2 {[%clk 0:02:46]} 15. Rxc2 {[%clk 0:02:28]}  Be7 {[%clk 0:02:47]} 16. Bg3 {[%clk 0:02:21]}  Nd7 {[%clk 0:02:46]} 17. O-O {[%clk 0:02:19]}  Nb6 {[%clk 0:02:46]} 18. Nd2 {[%clk 0:02:19]}  Nd5 {[%clk 0:02:46]} 19. Ne4 {[%clk 0:02:18]}  f5 {[%clk 0:02:26]} 20. exf6 {[%clk 0:02:16]}  Nxf6 {[%clk 0:02:24]} 21. Nxf6+ {[%clk 0:02:03]}  Bxf6 {[%clk 0:02:25]} 22. Bf3 {[%clk 0:01:58]}  Kd7 {[%clk 0:02:17]} 23. Re1 {[%clk 0:01:48]}  Bb7 {[%clk 0:02:13]} 24. Bg4 {[%clk 0:01:47]}  Rae8 {[%clk 0:02:09]} 25. Rce2 {[%clk 0:01:47]}  Bc8 {[%clk 0:01:58]} 26. Rxe6 {[%clk 0:01:36]}  Rxe6 {[%clk 0:01:54]} 27. Rxe6 {[%clk 0:01:36]}  Kd8 {[%clk 0:01:41]} 28. Rxf6 {[%clk 0:01:20]}  Bxg4 {[%clk 0:01:41]} 29. Rxc6 {[%clk 0:01:20]}  Re8 {[%clk 0:01:35]} 30. h3 {[%clk 0:01:20]}  Re1+ {[%clk 0:01:23]} 31. Kh2 {[%clk 0:01:19]}  Re6 {[%clk 0:01:21]} 32. Rc5 {[%clk 0:01:13]}  Be2 {[%clk 0:01:13]} 33. Rxb5 {[%clk 0:01:11]}  a6 {[%clk 0:01:10]} 34. Ra5 {[%clk 0:01:08]}  Kd7 {[%clk 0:01:09]} 35. Be5 {[%clk 0:01:08]}  Rb6 {[%clk 0:01:08]} 36. Ra2 {[%clk 0:01:05]}  Bd3 {[%clk 0:01:07]} 37. f4 {[%clk 0:01:04]}  Ke6 {[%clk 0:01:06]} 38. g4 {[%clk 0:01:03]}  Be4 {[%clk 0:00:57]} 39. Kg3 {[%clk 0:00:59]}  Bb7 {[%clk 0:00:54]} 40. f5+ {[%clk 0:00:42]}  Kd5 {[%clk 0:00:54]} 41. Kf4 {[%clk 0:00:41]}  Rb3 {[%clk 0:00:43]} 42. Rc2 {[%clk 0:00:41]}  a5 {[%clk 0:00:39]} 43. h4 {[%clk 0:00:40]}  a4 {[%clk 0:00:39]} 44. g5 {[%clk 0:00:40]}  hxg5+ {[%clk 0:00:40]} 45. hxg5 {[%clk 0:00:40]}  a3 {[%clk 0:00:41]} 46. g6 {[%clk 0:00:21]}  Rb2 {[%clk 0:00:39]} 47. g7 {[%clk 0:00:16]}  Rxc2 {[%clk 0:00:36]} 48. g8=Q+ {[%clk 0:00:17]}  Kc6 {[%clk 0:00:36]} 49. Qe8+ {[%clk 0:00:13]}  Kb6 {[%clk 0:00:33]} 50. Qd8+ {[%clk 0:00:13]}  Ka6 {[%clk 0:00:29]} 51. Qd6+ {[%clk 0:00:12]}  Ka7 {[%clk 0:00:27]} 52. Qxa3+ {[%clk 0:00:11]}  Kb6 {[%clk 0:00:28]} 53. Qc5+ {[%clk 0:00:11]}  Ka6 {[%clk 0:00:27]} 54. Qxc4+ {[%clk 0:00:11]} 1-0


[Site "https://www.chess.com"]

[Event "Titled Tuesday Blitz December 27 Early 2022"]
[White "Tharushi, T H D Niklesha"]
[Black "Haraguchi, Diego Sashaki"]
[WhiteFideId "9918264"]
[BlackFideId "22729925"]
[WhiteElo "1570"]
[BlackElo "2015"]
[Result "0-1"]
[Round "07"]
[TimeControl "180+2"]
[Date "2022.12.27"]
[WhiteClock "0:01:28"]
[BlackClock "0:01:22"]

1. e4 {[%clk 0:02:55]}  c5 {[%clk 0:02:33]} 2. Nf3 {[%clk 0:02:54]}  d6 {[%clk 0:02:33]} 3. Bb5+ {[%clk 0:02:52]}  Nd7 {[%clk 0:02:33]} 4. a4 {[%clk 0:02:50]}  Nf6 {[%clk 0:02:33]} 5. Nc3 {[%clk 0:02:50]}  g6 {[%clk 0:02:31]} 6. O-O {[%clk 0:02:50]}  Bg7 {[%clk 0:02:29]} 7. a5 {[%clk 0:02:49]}  O-O {[%clk 0:02:29]} 8. d4 {[%clk 0:02:46]}  cxd4 {[%clk 0:02:28]} 9. Nxd4 {[%clk 0:02:47]}  Nc5 {[%clk 0:02:28]} 10. f3 {[%clk 0:02:41]}  b6 {[%clk 0:02:26]} 11. Nc6 {[%clk 0:02:40]}  Qc7 {[%clk 0:02:25]} 12. a6 {[%clk 0:02:39]}  Bxa6 {[%clk 0:02:15]} 13. Nxe7+ {[%clk 0:02:34]}  Qxe7 {[%clk 0:02:16]} 14. Bxa6 {[%clk 0:02:34]}  Nxa6 {[%clk 0:02:14]} 15. Rxa6 {[%clk 0:02:33]}  Qb7 {[%clk 0:02:15]} 16. Ra1 {[%clk 0:02:30]}  d5 {[%clk 0:02:15]} 17. Nxd5 {[%clk 0:02:29]}  Rfd8 {[%clk 0:02:13]} 18. Nxf6+ {[%clk 0:02:28]}  Bxf6 {[%clk 0:02:12]} 19. Qe2 {[%clk 0:02:29]}  Rac8 {[%clk 0:02:09]} 20. c3 {[%clk 0:02:29]}  b5 {[%clk 0:02:08]} 21. Be3 {[%clk 0:02:28]}  a6 {[%clk 0:02:05]} 22. Rad1 {[%clk 0:02:29]}  b4 {[%clk 0:02:04]} 23. c4 {[%clk 0:02:15]}  Qc7 {[%clk 0:01:54]} 24. c5 {[%clk 0:02:13]}  a5 {[%clk 0:01:50]} 25. b3 {[%clk 0:02:12]}  Be5 {[%clk 0:01:44]} 26. f4 {[%clk 0:02:11]}  Bc3 {[%clk 0:01:42]} 27. e5 {[%clk 0:02:09]}  Qc6 {[%clk 0:01:41]} 28. Qf3 {[%clk 0:02:06]}  Qe6 {[%clk 0:01:40]} 29. Qh3 {[%clk 0:01:53]}  Qxh3 {[%clk 0:01:25]} 30. gxh3 {[%clk 0:01:53]}  a4 {[%clk 0:01:24]} 31. bxa4 {[%clk 0:01:50]}  b3 {[%clk 0:01:24]} 32. Rb1 {[%clk 0:01:42]}  Rd3 {[%clk 0:01:22]} 33. Bf2 {[%clk 0:01:29]}  b2 {[%clk 0:01:20]} 34. Kg2 {[%clk 0:01:27]}  Ra8 {[%clk 0:01:17]} 35. c6 {[%clk 0:01:26]}  Rc8 {[%clk 0:01:16]} 36. Bd4 {[%clk 0:01:24]}  Bxd4 {[%clk 0:01:13]} 37. Rf3 {[%clk 0:01:22]}  Rxf3 {[%clk 0:01:12]} 38. Kxf3 {[%clk 0:01:23]}  Rxc6 {[%clk 0:01:13]} 39. Ke4 {[%clk 0:01:22]}  Rc1 {[%clk 0:01:12]} 40. Kxd4 {[%clk 0:01:22]}  Rxb1 {[%clk 0:01:12]} 41. Kc3 {[%clk 0:01:23]}  Ra1 {[%clk 0:01:11]} 42. Kxb2 {[%clk 0:01:24]}  Rxa4 {[%clk 0:01:11]} 43. Kb3 {[%clk 0:01:24]}  Rxf4 {[%clk 0:01:11]} 44. Kc3 {[%clk 0:01:24]}  Re4 {[%clk 0:01:11]} 45. Kd3 {[%clk 0:01:23]}  Rxe5 {[%clk 0:01:11]} 46. Kd4 {[%clk 0:01:23]}  Re2 {[%clk 0:01:11]} 47. Kd3 {[%clk 0:01:23]}  Re6 {[%clk 0:01:11]} 48. h4 {[%clk 0:01:22]}  h5 {[%clk 0:01:12]} 49. h3 {[%clk 0:01:22]}  Kg7 {[%clk 0:01:13]} 50. Kd4 {[%clk 0:01:22]}  Kf6 {[%clk 0:01:13]} 51. Kd5 {[%clk 0:01:22]}  Kf5 {[%clk 0:01:14]} 52. Kd4 {[%clk 0:01:23]}  Kf4 {[%clk 0:01:15]} 53. Kd5 {[%clk 0:01:23]}  Kg3 {[%clk 0:01:16]} 54. Kd4 {[%clk 0:01:23]}  Kxh3 {[%clk 0:01:17]} 55. Kd5 {[%clk 0:01:23]}  Kxh4 {[%clk 0:01:18]} 56. Kd4 {[%clk 0:01:24]}  Kg3 {[%clk 0:01:19]} 57. Kd5 {[%clk 0:01:25]}  h4 {[%clk 0:01:20]} 58. Kd4 {[%clk 0:01:26]}  h3 {[%clk 0:01:21]} 59. Kd5 {[%clk 0:01:27]}  h2 {[%clk 0:01:22]} 60. Kd4 {[%clk 0:01:28]} 0-1


[Site "https://www.chess.com"]